fUST/lending_fUST_20240831
["ID","MTS","AMOUNT","RATE_DAILY","PERIOD"]
[336709757,1725055849879,-595.924874,0.00032876,7]
[336709758,1725055849891,-595.924874,0.00032876,7]
[336709759,1725055849900,-595.924874,0.00032876,7]
[336709760,1725055849910,-595.924874,0.00032876,7]
[336709761,1725055849920,-595.924874,0.00032876,7]
[336709762,1725055849930,-595.924874,0.00032876,7]
[336709763,1725055849940,-595.924874,0.00032876,7]
[336709764,1725055849949,-595.924874,0.00032876,7]
[336709765,1725055849958,-595.924874,0.00032876,7]
[336709766,1725055849969,-595.924874,0.00032876,7]
[336709767,1725055849978,-595.924874,0.00032876,7]
[336709768,1725055849988,-595.924874,0.00032876,7]
[336709769,1725055849997,-595.924874,0.00032876,7]
[336709770,1725055850118,-595.924874,0.00032876,7]
[336709771,1725055850128,-595.924874,0.00032876,7]
[336709772,1725055850137,-595.924874,0.00032876,7]
[336709773,1725055850148,-595.924864,0.00032876,7]
[336709774,1725055850158,-151.0,0.00032876,7]
[336709775,1725055850167,-151.0,0.00032876,7]
[336709776,1725055850177,-151.0,0.00032876,7]
[336709777,1725055850186,-151.0,0.00032876,7]
[336709778,1725055850195,-151.0,0.00032876,7]
[336709779,1725055850205,-151.0,0.00032876,7]
[336709780,1725055850215,-151.0,0.00032876,7]
[336709781,1725055850225,-151.0,0.00032876,7]
[336709782,1725055850235,-151.0,0.00032876,7]
[336709783,1725055850244,-151.0,0.00032876,7]
[336709784,1725055850254,-151.0,0.00032876,7]
[336709785,1725055850264,-151.0,0.00032876,7]
[336709786,1725055850274,-151.0,0.00032876,7]
[336709787,1725055850283,-151.0,0.00032876,7]
[336709788,1725055850292,-151.0,0.00032876,7]
[336709789,1725055850302,-151.0,0.00032876,7]
[336709790,1725055850311,-151.0,0.00032876,7]
[336709791,1725055850320,-151.0,0.00032876,7]
[336709792,1725055850329,-189.057539,0.00032876,7]
[336709793,1725055850338,-151.0,0.00032876,7]
[336709794,1725055850347,-151.0,0.00032876,7]
[336709795,1725055850357,-151.0,0.00032876,7]
[336709796,1725055850367,-151.0,0.00032876,7]
[336709797,1725055850376,-151.0,0.00032876,7]
[336709798,1725055850385,-151.0,0.00032876,7]
[336709799,1725055850394,-151.0,0.00032876,7]
[336709800,1725055850403,-151.0,0.00032876,7]
[336709801,1725055850413,-151.0,0.00032876,7]
[336709802,1725055850422,-151.0,0.00032876,7]
[336709803,1725055850432,-151.0,0.00032876,7]
[336709804,1725055850443,-151.0,0.00032876,7]
[336709805,1725055850453,-151.0,0.00032876,7]
[336709806,1725055850464,-151.0,0.00032876,7]
[336709807,1725055850473,-151.0,0.00032876,7]
[336709808,1725055850483,-151.0,0.00032876,7]
[336709809,1725055850492,-151.0,0.00032876,7]
[336709810,1725055850501,-151.0,0.00032876,7]
[336709811,1725055850511,-151.0,0.00032876,7]
[336709812,1725055850520,-209.650332,0.00032876,7]
[336709813,1725055850530,-151.0,0.00032876,7]
[336709814,1725055850542,-151.0,0.00032876,7]
[336709815,1725055850552,-151.0,0.00032876,7]
[336709816,1725055850562,-151.0,0.00032876,7]
[336709817,1725055850571,-151.0,0.00032876,7]
[336709818,1725055850581,-151.0,0.00032876,7]
[336709819,1725055850591,-151.0,0.00032876,7]
[336709820,1725055850601,-151.0,0.00032876,7]
[336709821,1725055850610,-501.11915737,0.00032876,31]
[336709822,1725055850621,-151.0,0.00032876,7]
[336709823,1725055850631,-151.0,0.00032876,7]
[336709824,1725055850641,-151.0,0.00032876,7]
[336709825,1725055850651,-238.733154,0.00032876,7]
[336709826,1725055850660,-502.0127902,0.00032876,31]
[336709827,1725055850669,-500.0,0.00032876,31]
[336709828,1725055850678,-500.0,0.00032876,31]
[336709829,1725055850687,-246.50637596,0.00032876,31]
[336709830,1725055850719,-309.30294729,0.00032876,31]
[336709831,1725055850729,-151.0,0.00032876,7]
[336709832,1725055850739,-151.0,0.00032876,7]
[336709833,1725055850750,-151.0,0.00032876,7]
[336709834,1725055850761,-20.35503059,0.00032876,7]
[336709853,1725056103053,-309.14000994,0.00025105,2]
[336709864,1725056238481,158.797451,0.00014247,2]
[336709885,1725056374354,-157.26907,0.0001863,2]
[336709905,1725056730153,-157.26907,0.00025205,2]
[336709906,1725056730175,-500.0,0.00028155,2]
[336709907,1725056730196,-169.0,0.0003,2]
[336709908,1725056730219,-151.0,0.0003,120]
[336709909,1725056730244,-215.484801,0.00030207,2]
[336709910,1725056730271,-157.26907,0.00031781,2]
[336709911,1725056730294,-153.0,0.00032554,2]
[336709912,1725056730326,-153.0,0.00032554,2]
[336709913,1725056730356,-409.5167953,0.00032556,2]
[336709914,1725056730379,-2344.33473357,0.00032615,2]
[336709915,1725056730403,-2344.33473356,0.00032653,2]
[336709916,1725056730428,-5656.92906737,0.00032656,4]
[336709917,1725056730449,-2918.96345394,0.00032666,2]
[336709918,1725056730471,-2344.33473356,0.0003269,2]
[336709919,1725056730496,-16970.7872021,0.00032726,4]
[336709920,1725056730517,-2344.33473356,0.00032728,2]
[336709921,1725056730540,-11313.8581347,0.00032756,4]
[336709922,1725056730562,-2000.0,0.00032756,2]
[336709923,1725056730585,-2344.33473356,0.00032765,2]
[336709924,1725056730770,-5656.92906737,0.00032766,4]
[336709925,1725056730791,-2273.0874651,0.00032776,2]
[336709926,1725056730814,-151.0,0.00032821,7]
[336709927,1725056730836,-53.36478016,0.00032836,3]
[336709928,1725056733110,-3066.50521984,0.00032836,3]
[336709929,1725056733135,-500.0,0.00032845,2]
[336709930,1725056733159,-500.0,0.00032845,2]
[336709931,1725056733183,-500.0,0.00032845,2]
[336709932,1725056733208,-500.0,0.00032845,2]
[336709933,1725056733232,-500.0,0.00032845,2]
[336709934,1725056733254,-500.0,0.00032845,2]
[336709935,1725056733283,-500.0,0.00032845,2]
[336709936,1725056733308,-531.44093159,0.00032845,2]
[336709937,1725056733331,-500.0,0.00032845,2]
[336709938,1725056733359,-500.0,0.00032845,2]
[336709939,1725056733382,-500.0,0.00032845,2]
[336709940,1725056733406,-438.67277865,0.00032845,2]
[336709941,1725056733429,-525.77537502,0.00032845,2]
[336709942,1725056733455,-500.0,0.00032845,2]
[336709943,1725056733480,-500.0,0.00032845,2]
[336709944,1725056733504,-500.0,0.00032845,2]
[336709945,1725056733527,-500.0,0.00032845,2]
[336709946,1725056733552,-500.0,0.00032845,2]
[336709947,1725056733576,-500.0,0.00032845,2]
[336709948,1725056733599,-500.0,0.00032845,2]
[336709949,1725056733623,-500.0,0.00032845,2]
[336709950,1725056733647,-500.0,0.00032845,2]
[336709951,1725056733670,-500.0,0.00032845,2]
[336709952,1725056733693,-500.0,0.00032845,2]
[336709953,1725056733716,-500.0,0.00032845,2]
[336709954,1725056733739,-500.0,0.00032845,2]
[336709955,1725056733762,-500.0,0.00032845,2]
[336709956,1725056733786,-500.0,0.00032845,2]
[336709957,1725056733810,-265.56983568,0.00032845,2]
[336709958,1725056733833,-500.0,0.00032845,2]
[336709959,1725056733857,-500.0,0.00032845,2]
[336709960,1725056733881,-500.0,0.00032845,2]
[336709961,1725056733907,-500.0,0.00032845,2]
[336709962,1725056733931,-500.0,0.00032845,2]
[336709963,1725056733955,-500.0,0.00032845,2]
[336709964,1725056733980,-500.0,0.00032845,2]
[336709965,1725056734002,-500.0,0.00032845,2]
[336709966,1725056734026,-4492.61,0.00032846,3]
[336709967,1725056734048,-3743.84,0.00032846,3]
[336709968,1725056734072,-16970.7872021,0.00032846,4]
[336709969,1725056734097,-11313.8581347,0.00032856,4]
[336709970,1725056734120,-151.0,0.00032856,7]
[336709971,1725056734143,-151.0,0.00032856,7]
[336709972,1725056734166,-151.0,0.00032856,7]
[336709973,1725056734188,-151.0,0.00032856,7]
[336709974,1725056734211,-155.412056,0.00032856,7]
[336709975,1725056734235,-387.367323,0.00032856,7]
[336709976,1725056734260,-155.412056,0.00032856,7]
[336709977,1725056734286,-151.0,0.00032856,7]
[336709978,1725056734311,-387.367323,0.00032856,7]
[336709979,1725056734335,-151.0,0.00032856,7]
[336709980,1725056734359,-151.0,0.00032856,7]
[336709981,1725056734384,-366.238635,0.00032856,7]
[336709982,1725056734411,-709.868747,0.00032856,7]
[336709983,1725056734436,-366.238635,0.00032856,7]
[336709984,1725056734462,-709.868747,0.00032856,7]
[336709985,1725056734488,-151.0,0.00032856,7]
[336709986,1725056734512,-1065.248016,0.00032856,7]
[336709987,1725056734536,-1065.248016,0.00032856,7]
[336709988,1725056734559,-151.006938,0.00032856,7]
[336709989,1725056734585,-151.006938,0.00032856,7]
[336709990,1725056734611,-151.0,0.00032856,7]
[336709991,1725056734635,-151.0,0.00032856,7]
[336709992,1725056734659,-186.603699,0.00032856,7]
[336709993,1725056734682,-186.603699,0.00032856,7]
[336709994,1725056734821,-151.0,0.00032856,7]
[336709995,1725056734845,-1000.257963,0.00032856,7]
[336709996,1725056734869,-1000.257963,0.00032856,7]
[336709997,1725056734890,-151.0,0.00032856,7]
[336709998,1725056734912,-151.0,0.00032856,7]
[336709999,1725056734936,-5656.92906737,0.00032856,4]
[336710000,1725056734958,-39598.5034716,0.00032866,4]
[336710001,1725056734981,-151.117491,0.00032866,7]
[336710002,1725056735004,-151.0,0.00032866,7]
[336710003,1725056735027,-151.0,0.00032866,7]
[336710004,1725056735050,-683.424576,0.00032866,7]
[336710005,1725056735072,-683.424576,0.00032866,7]
[336710006,1725056735093,-6330.979546,0.00032866,7]
[336710007,1725056735114,-6330.979546,0.00032866,7]
[336710008,1725056735136,-1713.096474,0.00032866,7]
[336710009,1725056735158,-1713.096474,0.00032866,7]
[336710010,1725056735179,-151.0,0.00032866,7]
[336710011,1725056735200,-151.0,0.00032866,7]
[336710012,1725056735221,-151.0,0.00032866,7]
[336710013,1725056735243,-199.341401,0.00032866,7]
[336710014,1725056735268,-155.412056,0.00032866,7]
[336710015,1725056735290,-387.367323,0.00032866,7]
[336710016,1725056735314,-155.412056,0.00032866,7]
[336710017,1725056735336,-151.0,0.00032866,7]
[336710018,1725056735362,-387.367323,0.00032866,7]
[336710019,1725056735383,-151.0,0.00032866,7]
[336710020,1725056735405,-231.037658,0.00032866,7]
[336710021,1725056735428,-366.238635,0.00032866,7]
[336710022,1725056735452,-709.868747,0.00032866,7]
[336710023,1725056735474,-366.238635,0.00032866,7]
[336710024,1725056735497,-709.868747,0.00032866,7]
[336710025,1725056735520,-151.0,0.00032866,7]
[336710026,1725056735543,-1065.248016,0.00032866,7]
[336710027,1725056735567,-1065.248016,0.00032866,7]
[336710028,1725056735589,-151.006938,0.00032866,7]
[336710029,1725056735611,-151.006938,0.00032866,7]
[336710030,1725056735634,-151.0,0.00032866,7]
[336710031,1725056735656,-151.0,0.00032866,7]
[336710032,1725056735677,-186.603699,0.00032866,7]
[336710033,1725056735698,-186.603699,0.00032866,7]
[336710034,1725056735719,-151.0,0.00032866,7]
[336710035,1725056735743,-1000.257963,0.00032866,7]
[336710036,1725056735764,-1000.257963,0.00032866,7]
[336710037,1725056735786,-151.0,0.00032866,7]
[336710038,1725056735809,-151.0,0.00032866,7]
[336710039,1725056735831,-150.01,0.00032872,2]
[336710040,1725056735855,-3761.02163037,0.00032872,2]
[336710041,1725056735877,-167.78,0.00032875,2]
[336710042,1725056735899,-167.78,0.00032875,2]
[336710043,1725056735921,-167.78,0.00032875,2]
[336710044,1725056735942,-167.78,0.00032875,2]
[336710045,1725056735963,-167.78,0.00032875,2]
[336710046,1725056735993,-167.78,0.00032875,2]
[336710047,1725056736017,-167.78,0.00032875,2]
[336710048,1725056736039,-167.78,0.00032875,2]
[336710049,1725056736063,-167.78,0.00032875,2]
[336710050,1725056736087,-500.0,0.00032875,2]
[336710051,1725056736109,-300.14862288,0.00032875,2]
[336710052,1725056736132,-500.0,0.00032875,2]
[336710053,1725056736156,-500.0,0.00032875,2]
[336710054,1725056736179,-500.0,0.00032875,2]
[336710055,1725056736203,-500.0,0.00032875,2]
[336710056,1725056736228,-500.0,0.00032875,2]
[336710057,1725056736253,-500.0,0.00032875,2]
[336710058,1725056736279,-583.31852258,0.00032875,2]
[336710059,1725056736304,-500.0,0.00032875,2]
[336710060,1725056736326,-500.0,0.00032875,2]
[336710061,1725056736350,-325.0,0.00032875,2]
[336710062,1725056736373,-628.1278339,0.00032876,5]
[336710063,1725056736395,-151.0,0.00032876,7]
[336710064,1725056736416,-151.0,0.00032876,7]
[336710065,1725056736438,-151.0,0.00032876,7]
[336710066,1725056736461,-151.0,0.00032876,7]
[336710067,1725056736483,-151.0,0.00032876,7]
[336710068,1725056736506,-151.0,0.00032876,7]
[336710069,1725056736529,-151.0,0.00032876,7]
[336710070,1725056736553,-151.0,0.00032876,7]
[336710071,1725056736576,-151.0,0.00032876,7]
[336710072,1725056736598,-279.682509,0.00032876,7]
[336710073,1725056736619,-151.0,0.00032876,7]
[336710074,1725056736641,-255.458788,0.00032876,7]
[336710075,1725056736663,-151.0,0.00032876,7]
[336710076,1725056736685,-255.458788,0.00032876,7]
[336710077,1725056736708,-255.458788,0.00032876,7]
[336710078,1725056736731,-255.458788,0.00032876,7]
[336710079,1725056736752,-255.458788,0.00032876,7]
[336710080,1725056736773,-255.458788,0.00032876,7]
[336710081,1725056736794,-255.458788,0.00032876,7]
[336710082,1725056736919,-255.458788,0.00032876,7]
[336710083,1725056736941,-255.458788,0.00032876,7]
[336710084,1725056736963,-255.458788,0.00032876,7]
[336710085,1725056736987,-255.458788,0.00032876,7]
[336710086,1725056737009,-255.458788,0.00032876,7]
[336710087,1725056737032,-255.458788,0.00032876,7]
[336710088,1725056737054,-255.458788,0.00032876,7]
[336710089,1725056737076,-255.458788,0.00032876,7]
[336710090,1725056737098,-255.458788,0.00032876,7]
[336710091,1725056737119,-255.458788,0.00032876,7]
[336710092,1725056737141,-255.458797,0.00032876,7]
[336710093,1725056737163,-151.0,0.00032876,7]
[336710094,1725056737184,-151.0,0.00032876,7]
[336710095,1725056737205,-151.0,0.00032876,7]
[336710096,1725056737227,-151.0,0.00032876,7]
[336710097,1725056737250,-151.0,0.00032876,7]
[336710098,1725056737275,-151.0,0.00032876,7]
[336710099,1725056737298,-151.0,0.00032876,7]
[336710100,1725056737319,-339.597049,0.00032876,7]
[336710101,1725056737341,-339.597049,0.00032876,7]
[336710102,1725056737362,-339.597049,0.00032876,7]
[336710103,1725056737384,-339.597049,0.00032876,7]
[336710104,1725056737406,-339.597049,0.00032876,7]
[336710105,1725056737430,-339.597049,0.00032876,7]
[336710106,1725056737455,-339.597049,0.00032876,7]
[336710107,1725056737478,-339.597049,0.00032876,7]
[336710108,1725056737502,-339.597049,0.00032876,7]
[336710109,1725056737524,-339.597049,0.00032876,7]
[336710110,1725056737546,-339.597049,0.00032876,7]
[336710111,1725056737567,-339.597049,0.00032876,7]
[336710112,1725056737588,-339.597049,0.00032876,7]
[336710113,1725056737610,-339.597046,0.00032876,7]
[336710114,1725056737631,-500.0,0.00032876,31]
[336710115,1725056737652,-500.0,0.00032876,31]
[336710116,1725056737672,-506.48357969,0.00032876,31]
[336710117,1725056737692,-500.0,0.00032876,31]
[336710118,1725056737714,-500.0,0.00032876,31]
[336710119,1725056737735,-151.0,0.00032876,7]
[336710120,1725056737755,-151.0,0.00032876,7]
[336710121,1725056737776,-151.0,0.00032876,7]
[336710122,1725056737797,-151.0,0.00032876,7]
[336710123,1725056737817,-151.0,0.00032876,7]
[336710124,1725056737838,-151.0,0.00032876,7]
[336710125,1725056737859,-151.0,0.00032876,7]
[336710126,1725056737882,-151.0,0.00032876,7]
[336710127,1725056737903,-151.0,0.00032876,7]
[336710128,1725056737925,-151.0,0.00032876,7]
[336710129,1725056737947,-151.0,0.00032876,7]
[336710130,1725056737968,-151.0,0.00032876,7]
[336710131,1725056737994,-151.0,0.00032876,7]
[336710132,1725056738016,-151.0,0.00032876,7]
[336710133,1725056738039,-151.0,0.00032876,7]
[336710134,1725056738063,-151.0,0.00032876,7]
[336710135,1725056738086,-151.0,0.00032876,7]
[336710136,1725056738109,-158.806732,0.00032876,7]
[336710137,1725056738131,-500.0,0.00032876,31]
[336710138,1725056738153,-359.403663,0.00032876,7]
[336710139,1725056738176,-359.403663,0.00032876,7]
[336710140,1725056738200,-359.403663,0.00032876,7]
[336710141,1725056738223,-359.403663,0.00032876,7]
[336710142,1725056738247,-359.403663,0.00032876,7]
[336710143,1725056738273,-359.403663,0.00032876,7]
[336710144,1725056738296,-359.403663,0.00032876,7]
[336710145,1725056738318,-359.403663,0.00032876,7]
[336710146,1725056738342,-359.403663,0.00032876,7]
[336710147,1725056738365,-359.403663,0.00032876,7]
[336710148,1725056738387,-359.403663,0.00032876,7]
[336710149,1725056738408,-359.403672,0.00032876,7]
[336710150,1725056738430,-500.0,0.00032876,31]
[336710151,1725056738452,-503.02118907,0.00032876,31]
[336710152,1725056738473,-502.98191272,0.00032876,31]
[336710153,1725056738496,-500.0,0.00032876,31]
[336710154,1725056738517,-500.0,0.00032876,31]
[336710155,1725056738537,-500.0,0.00032876,31]
[336710156,1725056738558,-500.0,0.00032876,31]
[336710157,1725056738579,-500.0,0.00032876,31]
[336710158,1725056738600,-500.0,0.00032876,31]
[336710159,1725056738621,-500.0,0.00032876,31]
[336710160,1725056738642,-500.0,0.00032876,31]
[336710161,1725056738663,-500.0,0.00032876,31]
[336710162,1725056738684,-500.0,0.00032876,31]
[336710163,1725056738706,-500.0,0.00032876,31]
[336710164,1725056738727,-500.0,0.00032876,31]
[336710165,1725056738750,-502.34190076,0.00032876,31]
[336710166,1725056738872,-500.0,0.00032876,31]
[336710167,1725056738895,-500.0,0.00032876,31]
[336710168,1725056738917,-500.0,0.00032876,31]
[336710169,1725056738939,-2540.95,0.00032876,31]
[336710170,1725056738963,-500.0,0.00032876,31]
[336710171,1725056738985,-500.0,0.00032876,31]
[336710172,1725056739007,-500.0,0.00032876,31]
[336710173,1725056739030,-500.0,0.00032876,31]
[336710174,1725056739051,-500.0,0.00032876,31]
[336710175,1725056739073,-627.63901446,0.00032876,31]
[336710176,1725056739093,-500.0,0.00032876,31]
[336710177,1725056739114,-151.0,0.00032876,7]
[336710178,1725056739136,-151.0,0.00032876,7]
[336710179,1725056739157,-500.0,0.00032876,31]
[336710180,1725056739178,-500.0,0.00032876,31]
[336710181,1725056739199,-509.54285442,0.00032876,31]
[336710182,1725056739220,-500.0,0.00032876,31]
[336710183,1725056739250,-500.0,0.00032876,31]
[336710184,1725056739276,-500.0,0.00032876,31]
[336710185,1725056739300,-500.0,0.00032876,31]
[336710186,1725056739322,-500.0,0.00032876,31]
[336710187,1725056739345,-500.0,0.00032876,31]
[336710188,1725056739367,-500.0,0.00032876,31]
[336710189,1725056739389,-500.89813694,0.00032876,31]
[336710190,1725056739411,-190.06856457,0.00032876,31]
[336710191,1725056739432,-500.0,0.00032876,31]
[336710192,1725056739453,-500.0,0.00032876,31]
[336710193,1725056739476,-226.16996909,0.00032876,31]
[336710198,1725056833153,-162.331421,0.00030764,2]
[336710199,1725056833177,-2000.0,0.00032676,2]
[336710200,1725056833198,-16027.77512,0.00032776,120]
[336710203,1725056907211,-157.26907,0.0001863,2]
[336710204,1725056921614,-71881.36850629,0.0002,2]
[336710226,1725056956190,-157.26907,0.00026521,2]
[336710243,1725057032405,-195.957411,0.00030542,2]
[336710245,1725057032415,-119.197589,0.00030799,2]
[336710247,1725057032429,-671.33001715,0.00030799,2]
[336710249,1725057032441,-962.77998585,0.00030799,2]
[336710250,1725057032452,-500.0,0.00031249,7]
[336710251,1725057032462,-51.79207439,0.00032,5]
[336710276,1725057038543,-254.86200653,0.00032,5]
[336710277,1725057038552,-306.0,0.00032556,2]
[336710278,1725057038562,-207.8512623,0.00032557,2]
[336710279,1725057038571,-153.0,0.00032557,2]
[336710280,1725057038581,-3334.77859204,0.00032675,2]
[336710281,1725057038591,-400.0,0.00032697,2]
[336710282,1725057038601,-400.0,0.00032697,2]
[336710283,1725057038611,-500.0,0.00032698,120]
[336710284,1725057038620,-500.0,0.00032698,120]
[336710285,1725057038630,-500.0,0.00032698,120]
[336710286,1725057038640,-490.86240149,0.00032711,7]
[336710287,1725057038650,-6500.0,0.00032711,120]
[336710289,1725057038659,-5830.13522116,0.00032711,120]
[336710291,1725057038668,-1660.74,0.00032756,3]
[336710293,1725057038677,-2592.96,0.00032756,3]
[336710295,1725057038686,-500.0,0.00032765,2]
[336710297,1725057038695,-281.27121462,0.00032765,2]
[336710299,1725057038705,-169.53059723,0.00032765,2]
[336710301,1725057038714,-500.0,0.00032765,2]
[336710303,1725057038724,-500.0,0.00032765,2]
[336710305,1725057038733,-176.55698357,0.00032765,2]
[336710307,1725057038750,-500.0,0.00032765,2]
[336710309,1725057038759,-500.0,0.00032765,2]
[336710311,1725057038768,-500.0,0.00032765,2]
[336710313,1725057038778,-500.0,0.00032765,2]
[336710315,1725057038787,-500.0,0.00032765,2]
[336710317,1725057038796,-500.0,0.00032765,2]
[336710319,1725057038805,-500.0,0.00032765,2]
[336710321,1725057038815,-78035.8845641,0.00032766,4]
[336710325,1725057041246,-22023.74412,0.00032766,4]
[336710326,1725057041266,-7422.0235999,0.00032766,4]
[336710327,1725057041275,-2298.34399242,0.00032766,2]
[336710328,1725057041284,-17921.08607968,0.00032776,5]
[336710329,1725057041296,-70966.91392032,0.00032776,5]
[336710330,1725057041305,-2000.0,0.00032776,2]
[336710331,1725057041315,-10036.59888469,0.00032776,120]
[336710332,1725057041325,-150.112233,0.000328,7]
[336710333,1725057041334,-150.112233,0.000328,5]
[336710334,1725057041343,-150.112233,0.000328,9]
[336710335,1725057041352,-150.112233,0.000328,5]
[336710336,1725057041361,-150.112233,0.000328,6]
[336710337,1725057041371,-150.112233,0.000328,6]
[336710338,1725057041380,-150.112233,0.000328,7]
[336710339,1725057041390,-5697.881591,0.00032856,7]
[336710340,1725057041404,-5697.881591,0.00032856,7]
[336710341,1725057041414,-1541.786826,0.00032856,7]
[336710342,1725057041424,-1541.786826,0.00032856,7]
[336710343,1725057041434,-270.565424,0.00032856,7]
[336710344,1725057041444,-270.565424,0.00032856,7]
[336710345,1725057041455,-107481.652284,0.00032856,4]
[336710346,1725057041464,-210.10403601,0.00032865,2]
[336710347,1725057041474,-500.0,0.00032865,2]
[336710348,1725057041485,-500.0,0.00032865,2]
[336710349,1725057041495,-500.0,0.00032865,2]
[336710350,1725057041505,-635.82296581,0.00032865,2]
[336710351,1725057041514,-500.0,0.00032865,2]
[336710352,1725057041524,-500.0,0.00032865,2]
[336710353,1725057041533,-500.0,0.00032865,2]
[336710354,1725057041543,-500.0,0.00032865,2]
[336710355,1725057041552,-1180.93224164,0.00032865,5]
[336710356,1725057041561,-102420.93001481,0.00032866,4]
[336710357,1725057041962,-2160.8,0.00032756,3]
[336710358,1725057041973,-112542.37455419,0.00032866,4]
[336710359,1725057041982,-5697.881591,0.00032866,7]
[336710360,1725057041993,-5697.881591,0.00032866,7]
[336710361,1725057042003,-1541.786826,0.00032866,7]
[336710362,1725057042012,-1541.786826,0.00032866,7]
[336710363,1725057042022,-270.565424,0.00032866,7]
[336710364,1725057042032,-270.565424,0.00032866,7]
[336710365,1725057042041,-309.893858,0.00032866,7]
[336710366,1725057042051,-309.893858,0.00032866,7]
[336710367,1725057042060,-615.082118,0.00032866,7]
[336710368,1725057042070,-615.082118,0.00032866,7]
[336710369,1725057042080,-150.01,0.00032874,2]
[336710370,1725057042090,-2507.34775358,0.00032874,2]
[336710371,1725057042099,-314.06391695,0.00032876,5]
[336710372,1725057042109,-247.083083,0.00032876,7]
[336710373,1725057042118,-500.0,0.00032876,31]
[336710374,1725057042128,-500.0,0.00032876,31]
[336710375,1725057042138,-500.0,0.00032876,31]
[336710376,1725057042148,-500.0,0.00032876,31]
[336710377,1725057042157,-500.0,0.00032876,31]
[336710378,1725057042167,-188.34866886,0.00032876,31]
[336710379,1725057042177,-503.54409052,0.00032876,31]
[336710380,1725057042186,-500.0,0.00032876,31]
[336710381,1725057042196,-500.93089011,0.00032876,31]
[336710382,1725057042205,-151.0,0.00032876,7]
[336710383,1725057042214,-151.0,0.00032876,7]
[336710384,1725057042224,-151.0,0.00032876,7]
[336710385,1725057042234,-151.0,0.00032876,7]
[336710386,1725057042244,-151.0,0.00032876,7]
[336710387,1725057042254,-512.22767555,0.00032876,31]
[336710388,1725057042263,-151.0,0.00032876,7]
[336710389,1725057042273,-151.0,0.00032876,7]
[336710390,1725057042283,-151.0,0.00032876,7]
[336710391,1725057042293,-151.0,0.00032876,7]
[336710392,1725057042303,-151.0,0.00032876,7]
[336710393,1725057042312,-500.0,0.00032876,31]
[336710394,1725057042322,-483.242746,0.00032876,7]
[336710395,1725057042332,-483.242746,0.00032876,7]
[336710396,1725057042341,-483.242746,0.00032876,7]
[336710397,1725057042351,-483.242746,0.00032876,7]
[336710398,1725057042361,-483.242746,0.00032876,7]
[336710399,1725057042371,-483.242746,0.00032876,7]
[336710400,1725057042381,-483.242746,0.00032876,7]
[336710401,1725057042391,-483.242746,0.00032876,7]
[336710402,1725057042403,-483.242746,0.00032876,7]
[336710403,1725057042413,-483.242746,0.00032876,7]
[336710404,1725057042422,-483.242746,0.00032876,7]
[336710405,1725057042432,-483.242746,0.00032876,7]
[336710406,1725057042442,-483.242746,0.00032876,7]
[336710407,1725057042451,-483.242746,0.00032876,7]
[336710408,1725057042461,-483.242746,0.00032876,7]
[336710409,1725057042471,-483.242746,0.00032876,7]
[336710410,1725057042480,-483.242746,0.00032876,7]
[336710411,1725057042490,-483.242746,0.00032876,7]
[336710412,1725057042501,-500.0,0.00032876,31]
[336710413,1725057042510,-500.0,0.00032876,31]